[Event "8th RTU Open 2018"]
[Site "Riga"]
[Date "2018.08.09"]
[Round "5"]
[White "Stocek, Jiri"]
[Black "Jackson, James P"]
[Result "1-0"]
[ECO "A16"]
[WhiteElo "2582"]
[BlackElo "2380"]
[Annotator "ChessBase"]
[PlyCount "85"]
[EventDate "2018.08.06"]
[EventType "swiss"]
[EventCountry "LAT"]
[SourceTitle "playchess.com"]
[Source "ChessBase"]
[SourceQuality "1"]
[TimeControl "5400+30"]

1. c4 {[%emt 0:04:11]} Nf6 {[%emt 0:01:05]} 2. Nc3 {[%emt 0:00:19]} c5 {[%emt 0:00:48]} 3. Nf3 {[%emt 0:00:08]} e6 {[%emt 0:00:46]} 4. e3 {[%emt 0:00:46]} d5 {[%emt 0:02:20]} 5. d4 {[%emt 0:00:17]} cxd4 {[%emt 0:01:29]} 6. exd4 {[%emt 0:00:08]} Bb4 {[%emt 0:00:05]} 7. Bd3 {[%emt 0:01:55]} dxc4 {[%emt 0:01:00]} 8. Bxc4 {[%emt 0:00:09]} O-O {[%emt 0:00:58]} 9. O-O {[%emt 0:00:07]} Bxc3 {[%emt 0:01:57]} 10. bxc3 {[%emt 0:00:07]} b6 {[%emt 0:00:05]} 11. Re1 {[%emt 0:11:17]} Qc7 {[%emt 0:07:26]} 12. Bb3 {[%emt 0:08:39]} Bb7 {[%emt 0:04:42]} 13. c4 {[%emt 0:03:12]} Nbd7 {[%emt 0:03:58]} 14. h3 {[%emt 0:07:44]} Rfe8 {[%emt 0:03:13]} 15. Bb2 {[%emt 0:00:35]} Rad8 {[%emt 0:10:40]} 16. Re3 {[%emt 0:00:56]} a6 {[%emt 0:19:00]} 17. Rc1 {[%emt 0:08:40]} Qb8 {[%emt 0:01:31]} 18. a4 {[%emt 0:02:34]} b5 {[%emt 0:03:05]} 19. axb5 {[%emt 0:00:45]} axb5 {[%emt 0:00:07]} 20. c5 {[%emt 0:00:39]} Rc8 {[%emt 0:03:09]} 21. Ne5 {[%emt 0:03:01]} Nxe5 {[%emt 0:04:41]} 22. dxe5 {[%emt 0:00:26]} Nd5 {[%emt 0:00:54]} 23. Rg3 {[%emt 0:01:21]} Ne7 {[%emt 0:00:39]} 24. Qg4 {[%emt 0:01:11]} Nf5 {[%emt 0:00:54]} 25. Rd3 {[%emt 0:00:42]} Bc6 {[%emt 0:00:21]} 26. Rcd1 {[%emt 0:09:44]} Qa7 {[%emt 0:03:22]} 27. Rc3 {[%emt 0:02:33]} Qe7 {[%emt 0:13:09]} 28. Bc2 {[%emt 0:07:45]} b4 {[%emt 0:03:52]} 29. Rc4 {[%emt 0:01:49]} Bd5 {[%emt 0:00:34]} 30. Rxd5 {[%emt 0:03:49]} exd5 {[%emt 0:02:16]} 31. Qxf5 {[%emt 0:00:13]} g6 {[%emt 0:00:05]} 32. Rg4 {[%emt 0:00:13]} Qxc5 {[%emt 0:00:38]} 33. Ba4 {[%emt 0:02:15]} Re7 {[%emt 0:02:57]} 34. Qg5 {[%emt 0:02:22]} d4 {[%emt 0:04:04]} 35. Rxd4 {[%emt 0:00:38]} Rxe5 {[%emt 0:01:06]} 36. Rd8+ {[%emt 0:00:14]} Rxd8 {[%emt 0:00:25]} 37. Qxd8+ {[%emt 0:00:08]} Kg7 {[%emt 0:00:06]} 38. Bd4 {[%emt 0:04:21]} Qc1+ {[%emt 0:00:58]} 39. Kh2 {[%emt 0:00:05]} Qf4+ {[%emt 0:00:25]} 40. g3 {[%emt 0:00:07]} Qe4 {[%emt 0:00:08]} 41. Bc2 {[%emt 0:02:11]} Qe2 {[%emt 0:00:55]} 42. Bd3 {[%emt 0:01:18]} Qe1 {[%emt 0:00:33]} 43. Qc7 {[%emt 0:00:25]} 1-0

[Event "8th RTU Open 2018"]
[Site "Riga"]
[Date "2018.08.09"]
[Round "5"]
[White "Petrosyan, Manuel"]
[Black "Thybo, Jesper Sondergaard"]
[Result "1-0"]
[ECO "A48"]
[WhiteElo "2567"]
[BlackElo "2496"]
[Annotator "ChessBase"]
[PlyCount "89"]
[EventDate "2018.08.06"]
[EventType "swiss"]
[EventCountry "LAT"]
[SourceTitle "playchess.com"]
[Source "ChessBase"]
[SourceQuality "1"]
[TimeControl "5400+30"]

1. d4 {[%emt 0:01:35]} Nf6 {[%emt 0:00:00]} 2. Nf3 {[%emt 0:00:15]} g6 {[%emt 0:00:00]} 3. Nbd2 {[%emt 0:00:45]} Bg7 {[%emt 0:01:43]} 4. e4 {[%emt 0:00:09]} d6 {[%emt 0:00:03]} 5. Bd3 {[%emt 0:01:13]} O-O {[%emt 0:00:55]} 6. O-O {[%emt 0:00:07]} c5 {[%emt 0:04:03]} 7. c3 {[%emt 0:01:47]} cxd4 {[%emt 0:02:48]} 8. cxd4 {[%emt 0:04:13]} Nc6 {[%emt 0:00:06]} 9. a3 {[%emt 0:06:32]} Nd7 {[%emt 0:11:16]} 10. Nb3 {[%emt 0:00:35]} e5 {[%emt 0:02:51]} 11. d5 {[%emt 0:11:31]} Ne7 {[%emt 0:02:57]} 12. Nbd2 {[%emt 0:19:02]} f5 {[%emt 0:05:22]} 13. b4 {[%emt 0:00:40]} Nf6 {[%emt 0:03:57]} 14. Bb2 {[%emt 0:02:36]} Kh8 {[%emt 0:08:34]} 15. Qb3 {[%emt 0:05:37]} Bh6 {[%emt 0:07:05]} 16. h3 b6 {[%emt 0:00:54]} 17. Rad1 {[%emt 0:16:26]} Bb7 {[%emt 0:01:03]} 18. Rfe1 {[%emt 0:01:01]} Qd7 {[%emt 0:08:35]} 19. Nc4 {[%emt 0:01:21]} fxe4 {[%emt 0:01:57]} 20. Bxe4 {[%emt 0:03:24]} Bg7 {[%emt 0:00:04]} 21. Bxe5 {[%emt 0:06:55]} dxe5 {[%emt 0:01:40]} 22. Nfxe5 {[%emt 0:00:04]} Qd8 {[%emt 0:04:23]} 23. Nc6 {[%emt 0:00:24]} Bxc6 {[%emt 0:01:40]} 24. dxc6 {[%emt 0:00:04]} Qc7 {[%emt 0:01:12]} 25. Nd6 {[%emt 0:00:15]} Neg8 {[%emt 0:16:12]} 26. Bf3 {[%emt 0:04:11]} a6 {[%emt 0:00:39]} 27. b5 {[%emt 0:01:43]} a5 {[%emt 0:03:16]} 28. Qe3 {[%emt 0:01:21]} Nh6 {[%emt 0:01:42]} 29. Qe7 {[%emt 0:02:26]} Ra7 {[%emt 0:00:14]} 30. Nb7 {[%emt 0:00:13]} Qxe7 {[%emt 0:01:18]} 31. Rxe7 {[%emt 0:00:02]} Nf5 {[%emt 0:00:07]} 32. Re6 {[%emt 0:00:27]} Ne8 {[%emt 0:02:20]} 33. Re4 {[%emt 0:05:27]} a4 {[%emt 0:03:36]} 34. Be2 {[%emt 0:00:14]} Ra8 {[%emt 0:00:42]} 35. g4 {[%emt 0:00:49]} Nf6 {[%emt 0:00:22]} 36. Re6 {[%emt 0:01:35]} Nh4 {[%emt 0:00:54]} 37. c7 {[%emt 0:00:20]} Rac8 {[%emt 0:00:57]} 38. Re7 {[%emt 0:01:47]} Ng8 {[%emt 0:00:26]} 39. Red7 {[%emt 0:00:48]} Be5 {[%emt 0:01:52]} 40. Nd6 {[%emt 0:00:29]} Bxd6 {[%emt 0:00:03]} 41. R1xd6 {[%emt 0:00:01]} Nf3+ {[%emt 0:01:09]} 42. Bxf3 {[%emt 0:01:19]} Rxf3 {[%emt 0:00:03]} 43. Rxb6 {[%emt 0:00:07]} Rff8 {[%emt 0:01:35]} 44. g5 {[%emt 0:00:38]} Rfe8 {[%emt 0:00:23]} 45. Rbd6 {[%emt 0:00:49]} 1-0

[Event "8th RTU Open 2018"]
[Site "Riga"]
[Date "2018.08.09"]
[Round "5"]
[White "Ter Sahakyan, Samvel"]
[Black "Ruiz Castillo, Joshua Daniel"]
[Result "1-0"]
[ECO "C19"]
[WhiteElo "2551"]
[BlackElo "2415"]
[Annotator "ChessBase"]
[PlyCount "167"]
[EventDate "2018.08.06"]
[EventType "swiss"]
[EventCountry "LAT"]
[SourceTitle "playchess.com"]
[Source "ChessBase"]
[SourceQuality "1"]
[TimeControl "5400+30"]

1. e4 {[%emt 0:00:00]} e6 {[%emt 0:02:41]} 2. d4 {[%emt 0:00:06]} d5 {[%emt 0:00:03]} 3. Nc3 {[%emt 0:00:07]} Bb4 {[%emt 0:00:05]} 4. e5 {[%emt 0:00:07]} c5 {[%emt 0:00:07]} 5. a3 {[%emt 0:00:12]} Bxc3+ {[%emt 0:00:04]} 6. bxc3 {[%emt 0:00:04]} Ne7 {[%emt 0:00:04]} 7. a4 {[%emt 0:05:55]} Qa5 {[%emt 0:04:20]} 8. Bd2 {[%emt 0:00:44]} c4 {[%emt 0:00:19]} 9. Qg4 {[%emt 0:06:01]} O-O {[%emt 0:02:04]} 10. Nh3 {[%emt 0:21:51]} Nbc6 {[%emt 0:04:39]} 11. Nf4 {[%emt 0:02:12]} f6 {[%emt 0:11:54]} 12. Nh5 {[%emt 0:02:15]} Ng6 {[%emt 0:00:06]} 13. exf6 {[%emt 0:13:56]} gxf6 {[%emt 0:00:21]} 14. Qd1 {[%emt 0:00:12]} Qc7 {[%emt 0:10:31]} 15. Be2 {[%emt 0:01:23]} Bd7 {[%emt 0:00:15]} 16. O-O {[%emt 0:00:16]} Kh8 {[%emt 0:00:43]} 17. Bg4 {[%emt 0:06:56]} Rf7 {[%emt 0:01:45]} 18. Qe2 {[%emt 0:10:53]} e5 {[%emt 0:01:53]} 19. Bxd7 {[%emt 0:01:28]} Qxd7 {[%emt 0:00:19]} 20. dxe5 {[%emt 0:00:07]} fxe5 {[%emt 0:00:09]} 21. f4 {[%emt 0:00:36]} exf4 {[%emt 0:01:55]} 22. Nxf4 {[%emt 0:00:54]} Nxf4 {[%emt 0:05:26]} 23. Rxf4 {[%emt 0:04:07]} Rxf4 {[%emt 0:00:33]} 24. Bxf4 {[%emt 0:00:29]} Qf5 {[%emt 0:04:27]} 25. Rf1 {[%emt 0:00:50]} Qe4 {[%emt 0:02:01]} 26. Qxe4 {[%emt 0:02:03]} dxe4 {[%emt 0:00:03]} 27. Kf2 {[%emt 0:00:22]} Kg7 {[%emt 0:07:02]} 28. Ke3 {[%emt 0:01:27]} Rd8 {[%emt 0:00:49]} 29. Rb1 {[%emt 0:04:33]} b6 {[%emt 0:00:14]} 30. Kxe4 {[%emt 0:00:09]} Kg6 {[%emt 0:00:18]} 31. Rb5 {[%emt 0:01:34]} Rd1 {[%emt 0:00:06]} 32. Rd5 {[%emt 0:00:53]} Re1+ {[%emt 0:00:04]} 33. Kf3 {[%emt 0:00:04]} Rf1+ {[%emt 0:00:20]} 34. Kg4 {[%emt 0:02:59]} Ne7 {[%emt 0:00:03]} 35. Rd6+ {[%emt 0:00:50]} Kf7 {[%emt 0:00:05]} 36. Bg5 {[%emt 0:02:00]} Nf5 {[%emt 0:00:07]} 37. Rc6 {[%emt 0:02:25]} Ng7 {[%emt 0:01:04]} 38. Rxc4 {[%emt 0:01:55]} Ne6 {[%emt 0:00:00]} 39. Be3 {[%emt 0:00:38]} Ra1 {[%emt 0:00:02]} 40. Kf3 {[%emt 0:02:43]} Ra2 {[%emt 0:00:06]} 41. g4 {[%emt 0:00:14]} Rxc2 {[%emt 0:00:06]} 42. h4 {[%emt 0:00:03]} Rh2 {[%emt 0:01:32]} 43. h5 {[%emt 0:00:30]} Kf6 {[%emt 0:00:03]} 44. Rc6 {[%emt 0:02:19]} Ke5 {[%emt 0:00:20]} 45. a5 {[%emt 0:01:18]} Rh3+ {[%emt 0:00:42]} 46. Kf2 {[%emt 0:00:27]} Nf4 {[%emt 0:01:29]} 47. axb6 {[%emt 0:01:04]} axb6 {[%emt 0:00:01]} 48. Bxb6 {[%emt 0:01:08]} Rh2+ {[%emt 0:00:15]} 49. Kg3 {[%emt 0:00:29]} Rh3+ {[%emt 0:00:04]} 50. Kf2 {[%emt 0:00:02]} Rh2+ {[%emt 0:00:04]} 51. Ke1 {[%emt 0:00:44]} Rg2 {[%emt 0:01:56]} 52. Bc7+ {[%emt 0:00:42]} Kd5 {[%emt 0:00:01]} 53. Rd6+ {[%emt 0:00:20]} Kc5 {[%emt 0:00:01]} 54. Kf1 {[%emt 0:00:38]} Rxg4 {[%emt 0:00:29]} 55. Rd4 {[%emt 0:00:38]} Nd5 {[%emt 0:00:01]} 56. Rxg4 {[%emt 0:00:20]} Ne3+ {[%emt 0:00:01]} 57. Ke2 {[%emt 0:00:40]} Nxg4 {[%emt 0:00:08]} 58. Kd3 {[%emt 0:00:24]} Nf6 {[%emt 0:01:59]} 59. Be5 {[%emt 0:00:30]} Ng4 {[%emt 0:02:14]} 60. Bd4+ {[%emt 0:00:13]} Kd5 {[%emt 0:00:00]} 61. c4+ {[%emt 0:00:06]} Ke6 {[%emt 0:00:01]} 62. Ke4 {[%emt 0:00:15]} Nh6 {[%emt 0:00:10]} 63. Be5 {[%emt 0:01:27]} Nf7 {[%emt 0:01:11]} 64. Bf4 {[%emt 0:00:05]} Nd8 {[%emt 0:00:02]} 65. c5 {[%emt 0:00:43]} Nc6 {[%emt 0:00:03]} 66. Bd6 {[%emt 0:00:28]} Nb4 {[%emt 0:00:32]} 67. Kf4 {[%emt 0:00:16]} Kf6 {[%emt 0:00:04]} 68. Be5+ {[%emt 0:00:15]} Ke6 {[%emt 0:00:05]} 69. Bd4 {[%emt 0:00:33]} Nc6 {[%emt 0:02:03]} 70. Bf2 {[%emt 0:00:16]} Ne5 {[%emt 0:00:22]} 71. Be3 {[%emt 0:00:38]} Nd3+ {[%emt 0:00:55]} 72. Ke4 {[%emt 0:00:34]} Ne5 {[%emt 0:00:13]} 73. Bd4 {[%emt 0:00:04]} Nc6 {[%emt 0:00:04]} 74. Bb2 {[%emt 0:00:19]} Ne7 {[%emt 0:00:15]} 75. Kf4 {[%emt 0:00:19]} Kd5 {[%emt 0:03:05]} 76. Kg5 {[%emt 0:00:23]} Ng8 {[%emt 0:10:25]} 77. Ba3 {[%emt 0:00:08]} Kc6 {[%emt 0:00:12]} 78. Kf5 {[%emt 0:00:21]} Kd5 {[%emt 0:00:20]} 79. Bb4 {[%emt 0:01:31]} Nh6+ {[%emt 0:00:19]} 80. Kf6 {[%emt 0:01:04]} Ng4+ {[%emt 0:00:03]} 81. Kg5 {[%emt 0:00:35]} Ne5 {[%emt 0:00:10]} 82. Kh6 {[%emt 0:00:06]} Nd3 {[%emt 0:00:02]} 83. Kxh7 {[%emt 0:01:18]} Nxb4 {[%emt 0:00:02]} 84. h6 {[%emt 0:00:09]} 1-0

[Event "8th RTU Open 2018"]
[Site "Riga"]
[Date "2018.08.09"]
[Round "5"]
[White "Meskovs, Nikita"]
[Black "Sinz, Bernhard"]
[Result "1-0"]
[ECO "A29"]
[WhiteElo "2524"]
[BlackElo "2377"]
[Annotator "ChessBase"]
[PlyCount "85"]
[EventDate "2018.08.06"]
[EventType "swiss"]
[EventCountry "LAT"]
[SourceTitle "playchess.com"]
[Source "ChessBase"]
[SourceQuality "1"]
[TimeControl "5400+30"]

1. c4 {[%emt 0:03:44]} e5 {[%emt 0:00:00]} 2. Nc3 {[%emt 0:00:14]} Nf6 {[%emt 0:00:04]} 3. Nf3 {[%emt 0:00:34]} Nc6 {[%emt 0:00:10]} 4. g3 {[%emt 0:00:12]} Bb4 {[%emt 0:00:26]} 5. Bg2 {[%emt 0:00:10]} O-O {[%emt 0:00:25]} 6. O-O {[%emt 0:00:12]} e4 {[%emt 0:00:47]} 7. Ng5 {[%emt 0:02:11]} Bxc3 {[%emt 0:00:18]} 8. bxc3 {[%emt 0:00:06]} Re8 {[%emt 0:00:29]} 9. f3 {[%emt 0:00:56]} e3 {[%emt 0:00:28]} 10. dxe3 {[%emt 0:03:23]} b6 {[%emt 0:00:46]} 11. Qa4 {[%emt 0:13:13]} Qe7 {[%emt 0:04:51]} 12. Nh3 {[%emt 0:14:16]} Na5 {[%emt 0:09:57]} 13. Nf4 {[%emt 0:03:36]} Bb7 {[%emt 0:15:37]} 14. Nd3 {[%emt 0:13:10]} c5 {[%emt 0:09:44]} 15. Nb2 {[%emt 0:07:05]} Qe6 {[%emt 0:09:51]} 16. e4 {[%emt 0:03:20]} h6 {[%emt 0:04:48]} 17. Rd1 {[%emt 0:05:27]} Bc6 {[%emt 0:01:49]} 18. Qc2 {[%emt 0:00:06]} Nxc4 {[%emt 0:00:35]} 19. Nxc4 {[%emt 0:00:05]} Qxc4 {[%emt 0:00:07]} 20. Rd6 {[%emt 0:01:37]} Re6 {[%emt 0:03:53]} 21. Bf4 {[%emt 0:01:11]} Nh5 {[%emt 0:02:39]} 22. Qd3 {[%emt 0:01:12]} Qxd3 {[%emt 0:07:35]} 23. Rxd3 {[%emt 0:00:09]} g5 {[%emt 0:17:27]} 24. Be3 {[%emt 0:04:25]} Bb5 {[%emt 0:03:09]} 25. Rd2 {[%emt 0:00:46]} Nf6 {[%emt 0:04:13]} 26. a4 {[%emt 0:04:16]} Bc4 {[%emt 0:00:03]} 27. a5 {[%emt 0:01:41]} Rae8 {[%emt 0:00:51]} 28. h4 {[%emt 0:05:55]} gxh4 {[%emt 0:00:52]} 29. Bh3 {[%emt 0:00:00]} Rc6 {[%emt 0:01:44]} 30. axb6 {[%emt 0:05:16]} axb6 {[%emt 0:00:01]} 31. gxh4 {[%emt 0:00:06]} d5 {[%emt 0:00:04]} 32. Kh1 {[%emt 0:00:03]} dxe4 {[%emt 0:01:00]} 33. Rg1+ {[%emt 0:00:01]} Kh8 {[%emt 0:00:33]} 34. Bxh6 {[%emt 0:00:42]} Nh5 {[%emt 0:00:05]} 35. Bd7 {[%emt 0:01:20]} Rxh6 {[%emt 0:00:09]} 36. Bxe8 {[%emt 0:00:01]} e3 {[%emt 0:01:43]} 37. Rd8 {[%emt 0:03:00]} Kh7 {[%emt 0:00:01]} 38. Ba4 {[%emt 0:00:08]} f5 {[%emt 0:01:01]} 39. Bc2 {[%emt 0:01:13]} Be6 {[%emt 0:00:19]} 40. Re8 {[%emt 0:03:42]} Nf4 {[%emt 0:00:06]} 41. Rg4 {[%emt 0:00:18]} Bd7 42. Re7+ {[%emt 0:00:09]} Kh8 {[%emt 0:01:17]} 43. Rxf4 {[%emt 0:00:08]} 1-0

[Event "8th RTU Open 2018"]
[Site "Riga"]
[Date "2018.08.09"]
[Round "5"]
[White "Anurag, Mhamal"]
[Black "Mishuchkov, Nikolai Mikhailovic"]
[Result "1/2-1/2"]
[ECO "B41"]
[WhiteElo "2484"]
[BlackElo "2307"]
[Annotator "ChessBase"]
[PlyCount "102"]
[EventDate "2018.08.06"]
[EventType "swiss"]
[EventCountry "LAT"]
[SourceTitle "playchess.com"]
[Source "ChessBase"]
[SourceQuality "1"]
[TimeControl "5400+30"]

1. e4 {[%emt 0:11:40]} c5 {[%emt 0:00:12]} 2. Nf3 {[%emt 0:00:08]} e6 {[%emt 0:00:06]} 3. d4 {[%emt 0:00:23]} cxd4 {[%emt 0:00:07]} 4. Nxd4 {[%emt 0:00:04]} a6 {[%emt 0:00:12]} 5. c4 {[%emt 0:00:30]} Nf6 {[%emt 0:00:29]} 6. Nc3 {[%emt 0:00:05]} Qc7 {[%emt 0:00:10]} 7. a3 {[%emt 0:01:06]} b6 {[%emt 0:05:52]} 8. Be3 {[%emt 0:03:52]} Bb7 {[%emt 0:01:55]} 9. f3 {[%emt 0:00:05]} d6 {[%emt 0:00:27]} 10. Be2 {[%emt 0:00:08]} Nbd7 {[%emt 0:00:07]} 11. O-O {[%emt 0:00:04]} Be7 {[%emt 0:00:05]} 12. Rc1 {[%emt 0:01:08]} O-O {[%emt 0:00:12]} 13. Qe1 {[%emt 0:01:11]} Rac8 {[%emt 0:06:05]} 14. Qf2 {[%emt 0:00:53]} Qb8 {[%emt 0:00:27]} 15. Rfd1 {[%emt 0:23:07]} Rfe8 {[%emt 0:01:27]} 16. g4 {[%emt 0:02:22]} Ne5 {[%emt 0:05:27]} 17. g5 {[%emt 0:00:20]} Nfd7 {[%emt 0:00:05]} 18. Qf1 {[%emt 0:00:34]} Nc6 {[%emt 0:06:18]} 19. Nb3 {[%emt 0:10:50]} Bd8 {[%emt 0:06:01]} 20. Nd2 {[%emt 0:09:43]} Bc7 {[%emt 0:01:18]} 21. Qf2 {[%emt 0:00:05]} Rcd8 {[%emt 0:01:18]} 22. Nf1 {[%emt 0:00:43]} Ne7 {[%emt 0:02:07]} 23. b4 {[%emt 0:01:39]} d5 {[%emt 0:02:19]} 24. cxd5 {[%emt 0:00:28]} exd5 {[%emt 0:00:07]} 25. Nxd5 {[%emt 0:00:39]} Nxd5 {[%emt 0:00:48]} 26. exd5 {[%emt 0:00:28]} Bf4 {[%emt 0:01:50]} 27. Bxf4 {[%emt 0:05:16]} Qxf4 {[%emt 0:00:38]} 28. Qg3 {[%emt 0:00:04]} Qe5 {[%emt 0:07:38]} 29. Rd2 {[%emt 0:05:15]} Nf8 {[%emt 0:05:28]} 30. Rc7 {[%emt 0:00:27]} Qxg3+ {[%emt 0:02:34]} 31. Nxg3 {[%emt 0:00:04]} Bxd5 {[%emt 0:00:10]} 32. Nf5 {[%emt 0:01:02]} Ng6 {[%emt 0:01:27]} 33. Bxa6 {[%emt 0:00:45]} Bxf3 {[%emt 0:01:20]} 34. Rxd8 {[%emt 0:10:44]} Rxd8 {[%emt 0:00:05]} 35. Bc4 {[%emt 0:00:01]} Ne5 {[%emt 0:00:37]} 36. Bb3 {[%emt 0:00:01]} Bd1 {[%emt 0:08:03]} 37. Bxd1 {[%emt 0:00:20]} Rxd1+ {[%emt 0:00:03]} 38. Kf2 {[%emt 0:04:19]} h6 {[%emt 0:07:18]} 39. gxh6 {[%emt 0:00:04]} gxh6 {[%emt 0:00:13]} 40. Re7 {[%emt 0:04:04]} Rd2+ {[%emt 0:05:53]} 41. Kf1 {[%emt 0:01:24]} Ng4 {[%emt 0:01:05]} 42. Re2 {[%emt 0:01:25]} Nxh2+ {[%emt 0:03:16]} 43. Ke1 {[%emt 0:00:09]} Nf3+ {[%emt 0:04:14]} 44. Kf2 {[%emt 0:00:05]} Rxe2+ {[%emt 0:00:49]} 45. Kxe2 {[%emt 0:00:05]} Ne5 {[%emt 0:00:03]} 46. Nxh6+ {[%emt 0:00:07]} Kg7 {[%emt 0:00:57]} 47. Nf5+ {[%emt 0:00:06]} Kf6 {[%emt 0:00:15]} 48. Nd4 {[%emt 0:01:08]} Nc4 {[%emt 0:00:21]} 49. a4 {[%emt 0:00:21]} Ke5 {[%emt 0:00:23]} 50. Nb3 {[%emt 0:01:29]} Kd5 {[%emt 0:01:50]} 51. a5 {[%emt 0:00:02]} bxa5 {[%emt 0:01:07]} 1/2-1/2

[Event "8th RTU Open 2018"]
[Site "Riga"]
[Date "2018.08.09"]
[Round "5"]
[White "Gretarsson, Helgi Ass"]
[Black "Dordzhieva, Dinara"]
[Result "0-1"]
[ECO "D43"]
[WhiteElo "2480"]
[BlackElo "2314"]
[Annotator "RC"]
[PlyCount "70"]
[EventDate "2018.08.06"]
[EventType "swiss"]
[EventCountry "LAT"]
[SourceTitle "playchess.com"]
[Source "ChessBase"]
[SourceQuality "1"]
[TimeControl "5400+30"]

1. d4 {[%emt 0:00:00]} d5 {[%emt 0:05:22]} 2. c4 {[%emt 0:00:00]} e6 {[%emt 0:00:04]} 3. Nf3 {[%emt 0:00:39]} Nf6 {[%emt 0:00:07]} 4. Nc3 {[%emt 0:06:25]} c6 {[%emt 0:01:11]} 5. Qb3 {[%emt 0:03:44]} Nbd7 {[%emt 0:01:37]} 6. g3 {[%emt 0:00:32]} Nb6 {[%emt 0:07:28]} 7. e3 {[%emt 0:17:18]} Nxc4 {[%emt 0:04:25]} 8. Bxc4 {[%emt 0:00:05]} dxc4 {[%emt 0:00:02]} 9. Qxc4 {[%emt 0:00:06]} Be7 {[%emt 0:00:19]} 10. e4 {[%emt 0:01:36]} b5 {[%emt 0:06:18]} 11. Qe2 {[%emt 0:01:26]} b4 {[%emt 0:00:03]} 12. Na4 {[%emt 0:00:06]} a5 {[%emt 0:01:38]} 13. Qc2 {[%emt 0:07:42]} O-O {[%emt 0:08:57]} 14. Bg5 {[%emt 0:08:46]} Ba6 {[%emt 0:09:51]} 15. O-O-O {[%emt 0:17:34]} Bb5 {[%emt 0:02:08]} 16. Rhe1 {[%emt 0:00:29]} h6 {[%emt 0:09:02]} 17. Bxf6 {[%emt 0:02:00]} Bxf6 {[%emt 0:00:03]} 18. Nc5 {[%emt 0:01:14]} Qc7 {[%emt 0:01:03]} 19. h4 {[%emt 0:02:45]} Rfd8 {[%emt 0:00:53]} 20. Kb1 {[%emt 0:02:57]} Be7 {[%emt 0:03:55]} 21. Qc1 {[%emt 0:06:53]} Qa7 {[%emt 0:07:40]} 22. Qe3 {[%emt 0:00:18]} a4 {[%emt 0:03:05]} 23. Rc1 {[%emt 0:00:11]} h5 {[%emt 0:03:47]} 24. Ne5 {[%emt 0:06:24]} f6 {[%emt 0:10:15]} 25. Ng6 {[%emt 0:01:15]} Bxc5 {[%emt 0:02:01]} 26. Rxc5 {[%emt 0:00:08]} a3 {[%emt 0:01:22]} 27. b3 {[%emt 0:07:06]} Qf7 {[%emt 0:02:38]} 28. Nf4 {[%emt 0:00:20]} e5 {[%emt 0:00:06]} 29. dxe5 {[%emt 0:00:15]} fxe5 {[%emt 0:00:07]} 30. Rxe5 {[%emt 0:00:23]} Qf6 {[%emt 0:00:11]} 31. Qc5 {[%emt 0:00:35]} Rd2 {[%emt 0:00:32]} 32. Nxh5 {[%emt 0:02:47]} Qf3 {[%emt 0:02:31]} 33. Nf4 {[%emt 0:03:45]} Bd3+ {[%emt 0:00:41]} 34. Kc1 {[%emt 0:00:41]} Rc2+ {[%emt 0:00:30]} 35. Qxc2 {[%emt 0:00:08]} Bxc2 {[%emt 0:00:02]} 0-1

[Event "8th RTU Open 2018"]
[Site "Riga"]
[Date "2018.08.09"]
[Round "5"]
[White "Laurusas, Tomas"]
[Black "Hovhannisyan, Robert"]
[Result "0-1"]
[ECO "D43"]
[WhiteElo "2463"]
[BlackElo "2608"]
[Annotator "ChessBase"]
[PlyCount "98"]
[EventDate "2018.08.06"]
[EventType "swiss"]
[EventCountry "LAT"]
[SourceTitle "playchess.com"]
[Source "ChessBase"]
[SourceQuality "1"]
[TimeControl "5400+30"]

1. d4 {[%emt 0:17:32]} d5 {[%emt 0:00:00]} 2. c4 {[%emt 0:00:11]} c6 {[%emt 0:00:00]} 3. Nf3 {[%emt 0:01:31]} Nf6 {[%emt 0:00:00]} 4. Nc3 {[%emt 0:00:08]} e6 {[%emt 0:00:09]} 5. cxd5 {[%emt 0:03:41]} exd5 {[%emt 0:00:07]} 6. Qc2 {[%emt 0:00:05]} Be6 {[%emt 0:14:21]} 7. Bf4 {[%emt 0:06:19]} Bd6 {[%emt 0:02:52]} 8. Bxd6 {[%emt 0:04:09]} Qxd6 {[%emt 0:00:06]} 9. e3 {[%emt 0:00:05]} Nbd7 {[%emt 0:06:23]} 10. Bd3 {[%emt 0:02:33]} O-O {[%emt 0:06:22]} 11. h3 {[%emt 0:01:37]} g6 {[%emt 0:02:36]} 12. O-O {[%emt 0:01:19]} Qe7 {[%emt 0:02:15]} 13. Rfe1 {[%emt 0:06:02]} Nb6 {[%emt 0:11:30]} 14. Rac1 Nc8 15. a3 {[%emt 0:03:59]} Nd6 {[%emt 0:02:51]} 16. Ne5 {[%emt 0:01:57]} Nd7 {[%emt 0:02:20]} 17. Nxd7 {[%emt 0:00:37]} Qxd7 {[%emt 0:02:32]} 18. Na4 {[%emt 0:04:58]} Bf5 {[%emt 0:01:30]} 19. Nc5 {[%emt 0:01:06]} Qe7 {[%emt 0:03:38]} 20. a4 {[%emt 0:00:59]} Bxd3 {[%emt 0:00:42]} 21. Nxd3 {[%emt 0:00:12]} Rae8 {[%emt 0:01:19]} 22. Qc5 {[%emt 0:02:55]} a6 {[%emt 0:01:38]} 23. Qb4 {[%emt 0:04:31]} f6 {[%emt 0:00:37]} 24. Rc2 {[%emt 0:00:29]} Rf7 {[%emt 0:01:10]} 25. Rce2 {[%emt 0:01:34]} Qd8 26. Nc5 {[%emt 0:01:05]} Rfe7 {[%emt 0:01:19]} 27. Rc1 h5 {[%emt 0:01:50]} 28. b3 {[%emt 0:01:03]} h4 {[%emt 0:02:29]} 29. a5 {[%emt 0:02:48]} g5 {[%emt 0:02:38]} 30. Rec2 {[%emt 0:02:47]} Qb8 {[%emt 0:04:05]} 31. Nd3 {[%emt 0:04:24]} Rg7 {[%emt 0:00:56]} 32. Nc5 {[%emt 0:01:31]} Kh8 {[%emt 0:01:21]} 33. Nxa6 {[%emt 0:02:47]} bxa6 {[%emt 0:00:07]} 34. Qxb8 {[%emt 0:00:04]} Rxb8 {[%emt 0:00:04]} 35. Rxc6 {[%emt 0:00:06]} Rd7 {[%emt 0:02:32]} 36. Rxa6 {[%emt 0:01:14]} Rxb3 {[%emt 0:00:19]} 37. Ra8+ {[%emt 0:04:04]} Kg7 38. a6 {[%emt 0:03:54]} Ra3 {[%emt 0:05:05]} 39. Rb1 Nf7 40. Kh2 {[%emt 0:13:20]} Rd6 {[%emt 0:02:28]} 41. g3 {[%emt 0:00:19]} Raxa6 {[%emt 0:01:40]} 42. Rxa6 {[%emt 0:00:18]} Rxa6 {[%emt 0:01:28]} 43. gxh4 {[%emt 0:00:18]} gxh4 {[%emt 0:00:08]} 44. Rg1+ {[%emt 0:00:28]} Kh6 {[%emt 0:00:23]} 45. Rg4 {[%emt 0:00:09]} Kh5 {[%emt 0:00:15]} 46. Rg7 {[%emt 0:00:53]} Ng5 {[%emt 0:01:40]} 47. Kg2 {[%emt 0:00:36]} Kh6 {[%emt 0:01:19]} 48. Rd7 {[%emt 0:00:24]} Ra5 {[%emt 0:00:05]} 49. Rb7 {[%emt 0:00:27]} Ra2 {[%emt 0:00:32]} 0-1